[Event "Titled Tuesday Blitz March 22 Early 2022"]
[White "Ljukin, Sergei"]
[Black "Abdrlauf, Elham"]
[WhiteFideId "14102200"]
[BlackFideId "1533533"]
[WhiteElo "2312"]
[BlackElo "2334"]
[Result "1-0"]
[Round "01"]
[TimeControl "180+1"]
[Date "2022.03.22"]
[WhiteClock "0:00:11"]
[BlackClock "0:00:05"]

1. e4 {[%clk 0:02:56]}  g6 {[%clk 0:02:55]} 2. d4 {[%clk 0:02:55]}  Bg7 {[%clk 0:02:56]} 3. Nc3 {[%clk 0:02:55]}  d6 {[%clk 0:02:56]} 4. f4 {[%clk 0:02:54]}  Nf6 {[%clk 0:02:57]} 5. Nf3 {[%clk 0:02:54]}  O-O {[%clk 0:02:58]} 6. Be3 {[%clk 0:02:54]}  c6 {[%clk 0:02:50]} 7. Bd3 {[%clk 0:02:50]}  b5 {[%clk 0:02:50]} 8. O-O {[%clk 0:02:45]}  b4 {[%clk 0:02:50]} 9. Ne2 {[%clk 0:02:45]}  Ba6 {[%clk 0:02:50]} 10. Kh1 {[%clk 0:02:44]}  d5 {[%clk 0:02:48]} 11. e5 {[%clk 0:02:42]}  Ne4 {[%clk 0:02:48]} 12. a3 {[%clk 0:02:39]}  Bxd3 {[%clk 0:02:36]} 13. cxd3 {[%clk 0:02:38]}  bxa3 {[%clk 0:02:30]} 14. Rxa3 {[%clk 0:02:30]}  f5 {[%clk 0:02:30]} 15. dxe4 {[%clk 0:02:30]}  fxe4 {[%clk 0:02:31]} 16. Nd2 {[%clk 0:02:16]}  Nd7 {[%clk 0:02:30]} 17. Nb3 {[%clk 0:02:15]}  Qb6 {[%clk 0:02:20]} 18. Qc2 {[%clk 0:02:09]}  g5 {[%clk 0:01:48]} 19. Nc5 {[%clk 0:02:02]}  Nxc5 {[%clk 0:01:48]} 20. dxc5 {[%clk 0:02:02]}  Qb5 {[%clk 0:01:38]} 21. Rfa1 {[%clk 0:01:52]}  gxf4 {[%clk 0:01:20]} 22. Bxf4 {[%clk 0:01:44]}  a5 {[%clk 0:01:21]} 23. Nd4 {[%clk 0:01:36]}  Qb7 {[%clk 0:00:55]} 24. Ne6 {[%clk 0:01:33]}  Rxf4 {[%clk 0:00:56]} 25. Nxf4 {[%clk 0:01:31]}  Bxe5 {[%clk 0:00:57]} 26. Ne2 {[%clk 0:01:20]}  Qxb2 {[%clk 0:00:53]} 27. Qxb2 {[%clk 0:01:09]}  Bxb2 {[%clk 0:00:54]} 28. Rxa5 {[%clk 0:01:10]}  Rf8 {[%clk 0:00:09]} 29. Rb1 {[%clk 0:01:07]}  Be5 {[%clk 0:00:07]} 30. Ng3 {[%clk 0:00:39]}  e3 {[%clk 0:00:06]} 31. Ra7 {[%clk 0:00:25]}  Rf7 {[%clk 0:00:01]} 32. Kg1 {[%clk 0:00:20]}  d4 {[%clk 0:00:02]} 33. Rf1 {[%clk 0:00:17]}  Bxg3 {[%clk 0:00:01]} 34. Rxf7 {[%clk 0:00:14]}  Kxf7 {[%clk 0:00:01]} 35. hxg3 {[%clk 0:00:14]}  d3 {[%clk 0:00:01]} 36. Rd7 {[%clk 0:00:11]}  d2 {[%clk 0:00:01]} 37. Kf1 {[%clk 0:00:11]}  Ke6 {[%clk 0:00:01]} 38. Rd8 {[%clk 0:00:11]}  Ke5 {[%clk 0:00:02]} 39. Ke2 {[%clk 0:00:11]}  Ke4 {[%clk 0:00:03]} 40. Rd3 {[%clk 0:00:11]}  d1=Q+ {[%clk 0:00:04]} 41. Rxd1 {[%clk 0:00:11]}  Kf5 {[%clk 0:00:05]} 42. Rd3 {[%clk 0:00:11]}  Kg4 {[%clk 0:00:05]} 43. Rxe3 {[%clk 0:00:11]} 1-0


[Site "https://www.chess.com"]

[Event "Titled Tuesday Blitz March 22 Early 2022"]
[White "Lou, Yiping"]
[Black "Rengifo Blancas, Renzo Jhonathan"]
[WhiteFideId "8603928"]
[BlackFideId "3807185"]
[WhiteElo "2412"]
[BlackElo "2058"]
[Result "1-0"]
[Round "01"]
[TimeControl "180+1"]
[Date "2022.03.22"]
[WhiteClock "0:01:12"]
[BlackClock "0:00:05"]

1. e4 {[%clk 0:02:57]}  c6 {[%clk 0:02:46]} 2. d4 {[%clk 0:02:53]}  d5 {[%clk 0:02:47]} 3. e5 {[%clk 0:02:47]}  Bf5 {[%clk 0:02:46]} 4. h4 {[%clk 0:02:47]}  h5 {[%clk 0:02:43]} 5. c4 {[%clk 0:02:46]}  e6 {[%clk 0:02:42]} 6. Nc3 {[%clk 0:02:45]}  Nh6 {[%clk 0:02:41]} 7. Bxh6 {[%clk 0:02:42]}  Rxh6 {[%clk 0:02:41]} 8. cxd5 {[%clk 0:02:42]}  exd5 {[%clk 0:02:38]} 9. Bd3 {[%clk 0:02:41]}  Bxd3 {[%clk 0:02:26]} 10. Qxd3 {[%clk 0:02:42]}  Rg6 {[%clk 0:02:26]} 11. g3 {[%clk 0:02:41]}  Qa5 {[%clk 0:02:23]} 12. Ne2 {[%clk 0:02:40]}  Nd7 {[%clk 0:02:23]} 13. Nf4 {[%clk 0:02:39]}  Rh6 {[%clk 0:02:22]} 14. O-O {[%clk 0:02:38]}  Be7 {[%clk 0:02:18]} 15. a3 {[%clk 0:02:38]}  Nf8 {[%clk 0:02:17]} 16. b4 {[%clk 0:02:37]}  Qd8 {[%clk 0:02:16]} 17. b5 {[%clk 0:02:37]}  Ne6 {[%clk 0:02:16]} 18. Nce2 {[%clk 0:02:34]}  Qd7 {[%clk 0:01:10]} 19. bxc6 {[%clk 0:02:30]}  bxc6 {[%clk 0:01:10]} 20. Rab1 {[%clk 0:02:27]}  Kf8 {[%clk 0:01:09]} 21. Rfc1 {[%clk 0:02:22]}  Kg8 {[%clk 0:01:08]} 22. Rc3 {[%clk 0:02:19]}  c5 {[%clk 0:01:02]} 23. dxc5 {[%clk 0:02:17]}  Nxc5 {[%clk 0:00:56]} 24. Qxd5 {[%clk 0:02:16]}  Rd8 {[%clk 0:00:50]} 25. Rxc5 {[%clk 0:02:11]}  Bxc5 {[%clk 0:00:49]} 26. Qxc5 {[%clk 0:02:10]}  Rc6 {[%clk 0:00:49]} 27. Qe3 {[%clk 0:02:09]}  g6 {[%clk 0:00:49]} 28. e6 {[%clk 0:02:09]}  Qe7 {[%clk 0:00:45]} 29. exf7+ {[%clk 0:02:06]}  Qxf7 {[%clk 0:00:45]} 30. Nd4 {[%clk 0:02:04]}  Re8 {[%clk 0:00:45]} 31. Qb3 {[%clk 0:01:58]}  Rb6 {[%clk 0:00:40]} 32. Qxf7+ {[%clk 0:01:56]}  Kxf7 {[%clk 0:00:40]} 33. Rxb6 {[%clk 0:01:56]}  axb6 {[%clk 0:00:41]} 34. Kg2 {[%clk 0:01:53]}  Ra8 {[%clk 0:00:40]} 35. Nc2 {[%clk 0:01:53]}  Rc8 {[%clk 0:00:39]} 36. Nb4 {[%clk 0:01:49]}  Rc3 {[%clk 0:00:36]} 37. Nfd5 {[%clk 0:01:48]}  Rxa3 {[%clk 0:00:35]} 38. Nxb6 {[%clk 0:01:48]}  Rb3 {[%clk 0:00:31]} 39. N6d5 {[%clk 0:01:45]}  Rb2 {[%clk 0:00:29]} 40. Nd3 {[%clk 0:01:43]}  Rd2 {[%clk 0:00:29]} 41. N5f4 {[%clk 0:01:38]}  Kg7 {[%clk 0:00:28]} 42. Ne5 {[%clk 0:01:37]}  Kf6 {[%clk 0:00:19]} 43. Nexg6 {[%clk 0:01:35]}  Kf5 {[%clk 0:00:19]} 44. Ne7+ {[%clk 0:01:32]}  Kf6 {[%clk 0:00:17]} 45. Ned5+ {[%clk 0:01:30]}  Kf5 {[%clk 0:00:16]} 46. Ne3+ {[%clk 0:01:28]}  Kf6 {[%clk 0:00:15]} 47. Nxh5+ {[%clk 0:01:29]}  Ke5 {[%clk 0:00:16]} 48. Nf4 {[%clk 0:01:27]}  Ke4 {[%clk 0:00:14]} 49. h5 {[%clk 0:01:28]}  Rd8 {[%clk 0:00:14]} 50. Ne6 {[%clk 0:01:25]}  Rh8 {[%clk 0:00:14]} 51. g4 {[%clk 0:01:23]}  Ke5 {[%clk 0:00:14]} 52. Ng5 {[%clk 0:01:23]}  Kf4 {[%clk 0:00:13]} 53. Nh3+ {[%clk 0:01:23]}  Ke4 {[%clk 0:00:13]} 54. Kg3 {[%clk 0:01:23]}  Rf8 {[%clk 0:00:12]} 55. Ng5+ {[%clk 0:01:24]}  Ke5 {[%clk 0:00:12]} 56. Ng2 {[%clk 0:01:22]}  Rg8 {[%clk 0:00:11]} 57. f4+ {[%clk 0:01:22]}  Kf6 {[%clk 0:00:11]} 58. Ne4+ {[%clk 0:01:21]}  Ke6 {[%clk 0:00:10]} 59. g5 {[%clk 0:01:21]}  Kf5 {[%clk 0:00:10]} 60. Nf6 {[%clk 0:01:19]}  Ra8 {[%clk 0:00:08]} 61. Nh4+ {[%clk 0:01:17]}  Ke6 {[%clk 0:00:07]} 62. h6 {[%clk 0:01:17]}  Kf7 {[%clk 0:00:06]} 63. Kg4 {[%clk 0:01:17]}  Ra5 {[%clk 0:00:06]} 64. Ne4 {[%clk 0:01:17]}  Kg8 {[%clk 0:00:05]} 65. g6 {[%clk 0:01:17]}  Ra4 {[%clk 0:00:06]} 66. Ng5 {[%clk 0:01:16]}  Kh8 {[%clk 0:00:04]} 67. Nf7+ {[%clk 0:01:15]}  Kg8 {[%clk 0:00:04]} 68. h7+ {[%clk 0:01:14]}  Kg7 {[%clk 0:00:05]} 69. h8=Q# {[%clk 0:01:12]} 1-0


[Site "https://www.chess.com"]

[Event "Titled Tuesday Blitz March 22 Early 2022"]
[White "Manolache, Marius"]
[Black "Kulkarni, Rakesh"]
[WhiteFideId "1201530"]
[BlackFideId "5037077"]
[WhiteElo "2389"]
[BlackElo "2246"]
[Result "1-0"]
[Round "01"]
[TimeControl "180+1"]
[Date "2022.03.22"]
[WhiteClock "0:00:34"]
[BlackClock "0:00:14"]

1. d4 {[%clk 0:02:59]}  c5 {[%clk 0:03:00]} 2. d5 {[%clk 0:02:59]}  e5 {[%clk 0:03:00]} 3. c4 {[%clk 0:02:59]}  d6 {[%clk 0:03:00]} 4. Nc3 {[%clk 0:02:59]}  f5 {[%clk 0:02:59]} 5. e4 {[%clk 0:02:58]}  Nf6 {[%clk 0:03:00]} 6. exf5 {[%clk 0:02:57]}  Bxf5 {[%clk 0:02:59]} 7. Nge2 {[%clk 0:02:57]}  Be7 {[%clk 0:02:58]} 8. Ng3 {[%clk 0:02:57]}  Bg6 {[%clk 0:02:59]} 9. Bd3 {[%clk 0:02:56]}  Bxd3 {[%clk 0:02:58]} 10. Qxd3 {[%clk 0:02:55]}  O-O {[%clk 0:02:59]} 11. O-O {[%clk 0:02:52]}  Na6 {[%clk 0:02:59]} 12. h3 {[%clk 0:02:49]}  Qd7 {[%clk 0:03:00]} 13. Bd2 {[%clk 0:02:47]}  Rae8 {[%clk 0:02:56]} 14. Rae1 {[%clk 0:02:45]}  Bd8 {[%clk 0:02:52]} 15. a3 {[%clk 0:02:44]}  Ba5 {[%clk 0:02:52]} 16. Re2 {[%clk 0:02:37]}  Bxc3 {[%clk 0:02:49]} 17. Bxc3 {[%clk 0:02:36]}  Nc7 {[%clk 0:02:44]} 18. Ne4 {[%clk 0:02:21]}  Nxe4 {[%clk 0:02:37]} 19. Rxe4 {[%clk 0:02:20]}  Re7 {[%clk 0:02:34]} 20. f4 {[%clk 0:02:12]}  Ref7 {[%clk 0:02:34]} 21. Bd2 {[%clk 0:01:57]}  Ne8 {[%clk 0:02:26]} 22. b4 {[%clk 0:01:53]}  b6 {[%clk 0:02:07]} 23. b5 {[%clk 0:01:53]}  Nf6 {[%clk 0:02:03]} 24. Ree1 {[%clk 0:01:43]}  exf4 {[%clk 0:01:50]} 25. Bxf4 {[%clk 0:01:38]}  Nh5 {[%clk 0:01:46]} 26. Bh2 {[%clk 0:01:36]}  Nf4 {[%clk 0:01:40]} 27. Qe4 {[%clk 0:01:32]}  g5 {[%clk 0:01:37]} 28. Rf3 {[%clk 0:01:30]}  Qf5 {[%clk 0:01:07]} 29. Qxf5 {[%clk 0:01:21]}  Rxf5 {[%clk 0:01:08]} 30. Bxf4 {[%clk 0:01:06]}  Rxf4 {[%clk 0:01:09]} 31. Re6 {[%clk 0:01:04]}  Rxf3 {[%clk 0:01:02]} 32. gxf3 {[%clk 0:01:03]}  Rxf3 {[%clk 0:01:03]} 33. Rxd6 {[%clk 0:01:00]}  Rxh3 {[%clk 0:01:02]} 34. Rd8+ {[%clk 0:00:59]}  Kf7 {[%clk 0:01:02]} 35. Rd7+ {[%clk 0:00:59]}  Kf6 {[%clk 0:01:02]} 36. Rxa7 {[%clk 0:00:59]}  h5 {[%clk 0:01:02]} 37. a4 {[%clk 0:00:55]}  Rc3 {[%clk 0:01:00]} 38. a5 {[%clk 0:00:53]}  bxa5 {[%clk 0:00:59]} 39. d6 {[%clk 0:00:52]}  Rxc4 {[%clk 0:00:51]} 40. d7 {[%clk 0:00:41]}  Ke7 {[%clk 0:00:51]} 41. b6 {[%clk 0:00:41]}  Rb4 {[%clk 0:00:50]} 42. b7 {[%clk 0:00:42]}  Rb1+ {[%clk 0:00:14]} 43. Kf2 {[%clk 0:00:41]}  Rb2+ {[%clk 0:00:15]} 44. Ke3 {[%clk 0:00:41]}  Rb3+ {[%clk 0:00:15]} 45. Ke4 {[%clk 0:00:41]}  Rb4+ {[%clk 0:00:14]} 46. Kd5 {[%clk 0:00:36]}  Rd4+ {[%clk 0:00:13]} 47. Kxc5 {[%clk 0:00:35]}  Rxd7 {[%clk 0:00:13]} 48. b8=Q {[%clk 0:00:34]}  Rxa7 {[%clk 0:00:14]} 49. Qxa7+ {[%clk 0:00:34]} 1-0


[Site "https://www.chess.com"]

[Event "Titled Tuesday Blitz March 22 Early 2022"]
[White "Martin Duque, Jesus"]
[Black "Sanchez, Robert"]
[WhiteFideId "2208954"]
[BlackFideId "2034360"]
[WhiteElo "2243"]
[BlackElo "2309"]
[Result "1-0"]
[Round "01"]
[TimeControl "180+1"]
[Date "2022.03.22"]
[WhiteClock "0:02:12"]
[BlackClock "0:02:36"]

1. Nf3 {[%clk 0:02:49]}  d5 {[%clk 0:02:59]} 2. b3 {[%clk 0:02:48]}  c6 {[%clk 0:02:59]} 3. Bb2 {[%clk 0:02:48]}  Nf6 {[%clk 0:02:59]} 4. e3 {[%clk 0:02:48]}  Nbd7 {[%clk 0:03:00]} 5. c4 {[%clk 0:02:42]}  e6 {[%clk 0:02:59]} 6. Nc3 {[%clk 0:02:40]}  Be7 {[%clk 0:02:59]} 7. Qc2 {[%clk 0:02:39]}  O-O {[%clk 0:02:59]} 8. g4 {[%clk 0:02:39]}  Nc5 {[%clk 0:02:49]} 9. g5 {[%clk 0:02:35]}  Nfe4 {[%clk 0:02:43]} 10. h4 {[%clk 0:02:35]}  dxc4 {[%clk 0:02:36]} 11. Nxe4 {[%clk 0:02:15]}  Nxe4 {[%clk 0:02:35]} 12. Qxe4 {[%clk 0:02:15]}  cxb3 {[%clk 0:02:36]} 13. Bd3 {[%clk 0:02:12]}  g6 {[%clk 0:02:36]} 1-0


[Site "https://www.chess.com"]

[Event "Titled Tuesday Blitz March 22 Early 2022"]
[White "Milanovic, Marko"]
[Black "Xu, Yi"]
[WhiteFideId "980129"]
[BlackFideId "8605564"]
[WhiteElo "2159"]
[BlackElo "2471"]
[Result "0-1"]
[Round "01"]
[TimeControl "180+1"]
[Date "2022.03.22"]
[WhiteClock "0:00:12"]
[BlackClock "0:00:34"]

1. e4 {[%clk 0:03:00]}  c5 {[%clk 0:02:59]} 2. Nf3 {[%clk 0:02:41]}  d6 {[%clk 0:02:59]} 3. Bb5+ {[%clk 0:02:39]}  Nd7 {[%clk 0:02:58]} 4. d4 {[%clk 0:02:39]}  cxd4 {[%clk 0:02:58]} 5. Qxd4 {[%clk 0:02:39]}  Nf6 {[%clk 0:02:57]} 6. Nc3 {[%clk 0:02:40]}  a6 {[%clk 0:02:43]} 7. Bxd7+ {[%clk 0:02:40]}  Bxd7 {[%clk 0:02:41]} 8. Bg5 {[%clk 0:02:39]}  e6 {[%clk 0:02:41]} 9. O-O {[%clk 0:02:36]}  Be7 {[%clk 0:02:38]} 10. Bxf6 {[%clk 0:02:35]}  gxf6 {[%clk 0:02:37]} 11. Rfe1 {[%clk 0:02:35]}  Bc6 {[%clk 0:02:37]} 12. Rad1 {[%clk 0:02:34]}  Qa5 {[%clk 0:02:36]} 13. Nd5 {[%clk 0:02:24]}  Bxd5 {[%clk 0:02:25]} 14. exd5 {[%clk 0:02:23]}  e5 {[%clk 0:02:25]} 15. Qd3 {[%clk 0:02:21]}  O-O-O {[%clk 0:02:19]} 16. Nh4 {[%clk 0:02:17]}  Kb8 {[%clk 0:02:16]} 17. Nf5 {[%clk 0:02:17]}  Bf8 {[%clk 0:02:15]} 18. a3 {[%clk 0:02:13]}  h5 {[%clk 0:02:15]} 19. b4 {[%clk 0:02:12]}  Qc7 {[%clk 0:02:13]} 20. c4 {[%clk 0:02:11]}  Bh6 {[%clk 0:02:08]} 21. Re2 {[%clk 0:02:03]}  h4 {[%clk 0:02:00]} 22. Rc2 {[%clk 0:01:58]}  h3 {[%clk 0:01:57]} 23. g3 {[%clk 0:01:53]}  Bf8 {[%clk 0:01:42]} 24. Rdc1 {[%clk 0:01:46]}  Qd7 {[%clk 0:01:34]} 25. Rd1 {[%clk 0:01:26]}  Rc8 {[%clk 0:01:29]} 26. Rdc1 {[%clk 0:01:09]}  Rh5 {[%clk 0:01:13]} 27. Ne3 {[%clk 0:00:59]}  f5 {[%clk 0:01:07]} 28. c5 {[%clk 0:00:51]}  f4 {[%clk 0:01:02]} 29. c6 {[%clk 0:00:46]}  Qe7 {[%clk 0:00:46]} 30. cxb7 {[%clk 0:00:36]}  Rxc2 {[%clk 0:00:44]} 31. Rxc2 {[%clk 0:00:24]}  Qxb7 {[%clk 0:00:42]} 32. Nc4 {[%clk 0:00:19]}  e4 {[%clk 0:00:38]} 33. Qxe4 {[%clk 0:00:15]}  Rxd5 {[%clk 0:00:35]} 34. Qe8+ {[%clk 0:00:15]}  Ka7 {[%clk 0:00:35]} 35. Rc1 {[%clk 0:00:12]}  Rd1+ {[%clk 0:00:33]} 36. Rxd1 {[%clk 0:00:12]}  Qg2# {[%clk 0:00:34]} 0-1


[Site "https://www.chess.com"]

[Event "Titled Tuesday Blitz March 22 Early 2022"]
[White "Obolentseva, Alexandra"]
[Black "Gubanov, Oleg"]
[WhiteFideId "24153648"]
[BlackFideId "14115115"]
[WhiteElo "2113"]
[BlackElo "2080"]
[Result "0-1"]
[Round "01"]
[TimeControl "180+1"]
[Date "2022.03.22"]
[WhiteClock "0:00:53"]
[BlackClock "0:00:23"]

1. d4 {[%clk 0:02:57]}  b5 {[%clk 0:02:58]} 2. e4 {[%clk 0:02:53]}  Bb7 {[%clk 0:02:58]} 3. Bd3 {[%clk 0:02:51]}  Nf6 {[%clk 0:02:58]} 4. Nd2 {[%clk 0:02:49]}  c5 {[%clk 0:02:58]} 5. dxc5 {[%clk 0:02:46]}  Na6 {[%clk 0:02:58]} 6. Ngf3 {[%clk 0:02:42]}  Nxc5 {[%clk 0:02:58]} 7. O-O {[%clk 0:02:42]}  Nfxe4 {[%clk 0:02:48]} 8. Nxe4 {[%clk 0:02:41]}  Nxe4 {[%clk 0:02:45]} 9. Bxb5 {[%clk 0:02:39]}  a6 {[%clk 0:02:37]} 10. Bc4 {[%clk 0:02:37]}  d5 {[%clk 0:02:35]} 11. Bb3 {[%clk 0:02:37]}  Nc5 {[%clk 0:02:34]} 12. Re1 {[%clk 0:02:35]}  Nxb3 {[%clk 0:02:34]} 13. cxb3 {[%clk 0:02:33]}  e6 {[%clk 0:02:35]} 14. Bg5 {[%clk 0:02:31]}  Be7 {[%clk 0:02:32]} 15. Bxe7 {[%clk 0:02:23]}  Qxe7 {[%clk 0:02:33]} 16. Rc1 {[%clk 0:02:22]}  O-O {[%clk 0:02:31]} 17. Qd4 {[%clk 0:02:13]}  Qd6 {[%clk 0:02:09]} 18. Qc5 {[%clk 0:02:09]}  Qxc5 {[%clk 0:02:08]} 19. Rxc5 {[%clk 0:02:10]}  Rfc8 {[%clk 0:02:08]} 20. Rec1 {[%clk 0:02:09]}  Rxc5 {[%clk 0:02:06]} 21. Rxc5 {[%clk 0:02:10]}  Rc8 {[%clk 0:02:06]} 22. Rxc8+ {[%clk 0:02:09]}  Bxc8 {[%clk 0:02:06]} 23. Kf1 {[%clk 0:02:10]}  f6 {[%clk 0:02:02]} 24. Ke2 {[%clk 0:02:10]}  e5 {[%clk 0:02:02]} 25. Ke3 {[%clk 0:02:10]}  Kf7 {[%clk 0:02:03]} 26. Nd2 {[%clk 0:02:09]}  Ke6 {[%clk 0:02:02]} 27. b4 {[%clk 0:02:09]}  Kd6 {[%clk 0:02:02]} 28. a4 {[%clk 0:02:07]}  d4+ {[%clk 0:02:00]} 29. Kd3 {[%clk 0:02:07]}  Kd5 {[%clk 0:02:00]} 30. f3 {[%clk 0:02:08]}  f5 {[%clk 0:01:59]} 31. b3 {[%clk 0:02:07]}  Bd7 {[%clk 0:01:57]} 32. Nc4 {[%clk 0:02:01]}  e4+ {[%clk 0:01:57]} 33. fxe4+ {[%clk 0:02:02]}  fxe4+ {[%clk 0:01:57]} 34. Kd2 {[%clk 0:02:02]}  e3+ {[%clk 0:01:55]} 35. Ke2 {[%clk 0:02:02]}  Bg4+ {[%clk 0:01:53]} 36. Kd3 {[%clk 0:02:02]}  Bd1 {[%clk 0:01:05]} 37. Nb6+ {[%clk 0:01:53]}  Kc6 {[%clk 0:01:03]} 38. Nc8 {[%clk 0:01:36]}  Bxb3 {[%clk 0:00:58]} 39. Ne7+ {[%clk 0:01:36]}  Kd7 {[%clk 0:00:47]} 40. Nf5 {[%clk 0:01:36]}  Bc4+ {[%clk 0:00:46]} 41. Kc2 {[%clk 0:01:29]}  d3+ {[%clk 0:00:46]} 42. Kc3 {[%clk 0:01:27]}  e2 {[%clk 0:00:42]} 43. Kd2 {[%clk 0:01:28]}  g6 {[%clk 0:00:38]} 44. Ne3 {[%clk 0:01:26]}  Bb3 {[%clk 0:00:39]} 45. a5 {[%clk 0:01:22]}  Kc6 {[%clk 0:00:39]} 46. Ng4 {[%clk 0:01:20]}  Kb5 {[%clk 0:00:38]} 47. Ne5 {[%clk 0:01:20]}  Bc2 {[%clk 0:00:37]} 48. g4 {[%clk 0:01:11]}  Kxb4 {[%clk 0:00:37]} 49. h4 {[%clk 0:01:11]}  Kxa5 {[%clk 0:00:31]} 50. h5 {[%clk 0:01:10]}  gxh5 {[%clk 0:00:31]} 51. gxh5 {[%clk 0:01:11]}  Kb4 {[%clk 0:00:30]} 52. h6 {[%clk 0:01:10]}  a5 {[%clk 0:00:30]} 53. Nc6+ {[%clk 0:01:03]}  Kb5 {[%clk 0:00:28]} 54. Nd4+ {[%clk 0:01:03]}  Kc4 {[%clk 0:00:28]} 55. Nf3 {[%clk 0:00:59]}  a4 {[%clk 0:00:27]} 56. Ng5 {[%clk 0:00:59]}  e1=Q+ {[%clk 0:00:24]} 57. Kxe1 {[%clk 0:00:59]}  Kc3 {[%clk 0:00:25]} 58. Nf3 {[%clk 0:00:58]}  a3 {[%clk 0:00:26]} 59. Kf2 {[%clk 0:00:58]}  a2 {[%clk 0:00:26]} 60. Ne1 {[%clk 0:00:54]}  d2 {[%clk 0:00:25]} 61. Nxc2 {[%clk 0:00:52]}  Kxc2 {[%clk 0:00:25]} 62. Kf3 {[%clk 0:00:52]}  d1=Q+ {[%clk 0:00:25]} 63. Kf4 {[%clk 0:00:53]}  a1=Q {[%clk 0:00:23]} 64. Kf5 {[%clk 0:00:53]} 0-1


[Site "https://www.chess.com"]

[Event "Titled Tuesday Blitz March 22 Early 2022"]
[White "Olsen, Filip Boe"]
[Black "Kollars, Dmitrij"]
[WhiteFideId "1440640"]
[BlackFideId "12909572"]
[WhiteElo "2188"]
[BlackElo "2584"]
[Result "0-1"]
[Round "01"]
[TimeControl "180+1"]
[Date "2022.03.22"]
[WhiteClock "0:00:03"]
[BlackClock "0:00:08"]

1. d4 {[%clk 0:02:57]}  d5 {[%clk 0:02:58]} 2. Nf3 {[%clk 0:02:57]}  c6 {[%clk 0:02:57]} 3. Bf4 {[%clk 0:02:57]}  Bg4 {[%clk 0:02:55]} 4. Ne5 {[%clk 0:02:54]}  Bf5 {[%clk 0:02:55]} 5. c4 {[%clk 0:02:53]}  Nd7 {[%clk 0:02:46]} 6. Nc3 {[%clk 0:02:50]}  Nxe5 {[%clk 0:02:45]} 7. Bxe5 {[%clk 0:02:50]}  e6 {[%clk 0:02:45]} 8. e3 {[%clk 0:02:50]}  Nf6 {[%clk 0:02:44]} 9. Bd3 {[%clk 0:02:43]}  Bxd3 {[%clk 0:02:35]} 10. Qxd3 {[%clk 0:02:43]}  Bb4 {[%clk 0:02:36]} 11. O-O {[%clk 0:02:41]}  O-O {[%clk 0:02:35]} 12. a3 {[%clk 0:02:35]}  Bxc3 {[%clk 0:02:33]} 13. Bxf6 {[%clk 0:02:36]}  Qxf6 {[%clk 0:02:28]} 14. bxc3 {[%clk 0:02:30]}  Rac8 {[%clk 0:02:21]} 15. Rab1 {[%clk 0:02:30]}  Qe7 {[%clk 0:02:19]} 16. Rb3 {[%clk 0:02:28]}  Rfd8 {[%clk 0:02:10]} 17. Rfb1 {[%clk 0:02:25]}  b6 {[%clk 0:02:11]} 18. h3 {[%clk 0:02:22]}  c5 {[%clk 0:02:07]} 19. dxc5 {[%clk 0:02:02]}  Rxc5 {[%clk 0:02:00]} 20. cxd5 {[%clk 0:02:02]}  Rcxd5 {[%clk 0:02:01]} 21. Qe2 {[%clk 0:01:58]}  Rd2 {[%clk 0:01:56]} 22. Qf3 {[%clk 0:01:56]}  g6 {[%clk 0:01:48]} 23. c4 {[%clk 0:01:36]}  Rc2 {[%clk 0:01:43]} 24. Rd1 {[%clk 0:01:29]}  Rxc4 {[%clk 0:01:36]} 25. Rbd3 {[%clk 0:01:28]}  Rcc8 {[%clk 0:01:24]} 26. g3 {[%clk 0:01:11]}  Kg7 {[%clk 0:01:21]} 27. Qe4 {[%clk 0:01:00]}  Rxd3 {[%clk 0:01:17]} 28. Rxd3 {[%clk 0:01:00]}  Rc5 {[%clk 0:01:12]} 29. Qa8 {[%clk 0:00:47]}  Rc1+ {[%clk 0:01:08]} 30. Kh2 {[%clk 0:00:47]}  Qf6 {[%clk 0:01:08]} 31. Kg2 {[%clk 0:00:36]}  Rc2 {[%clk 0:01:07]} 32. Qf3 {[%clk 0:00:36]}  Ra2 {[%clk 0:01:02]} 33. g4 {[%clk 0:00:25]}  Qxf3+ {[%clk 0:00:50]} 34. Kxf3 {[%clk 0:00:26]}  Kf6 {[%clk 0:00:51]} 35. Kg3 {[%clk 0:00:20]}  b5 {[%clk 0:00:44]} 36. Kf3 {[%clk 0:00:20]}  a5 {[%clk 0:00:44]} 37. Rb3 {[%clk 0:00:19]}  g5 {[%clk 0:00:33]} 38. Kg3 {[%clk 0:00:20]}  h6 {[%clk 0:00:30]} 39. Kf3 {[%clk 0:00:19]}  a4 {[%clk 0:00:30]} 40. Rxb5 {[%clk 0:00:19]}  Rxa3 {[%clk 0:00:31]} 41. Ra5 {[%clk 0:00:20]}  Ra1 {[%clk 0:00:31]} 42. Kg2 {[%clk 0:00:20]}  a3 {[%clk 0:00:31]} 43. Kh2 {[%clk 0:00:19]}  Kg6 {[%clk 0:00:27]} 44. Kg2 {[%clk 0:00:20]}  h5 {[%clk 0:00:24]} 45. Kh2 {[%clk 0:00:19]}  h4 {[%clk 0:00:22]} 46. Kg2 {[%clk 0:00:20]}  f6 {[%clk 0:00:23]} 47. Ra7 {[%clk 0:00:20]}  f5 {[%clk 0:00:22]} 48. Ra6 {[%clk 0:00:13]}  fxg4 {[%clk 0:00:22]} 49. hxg4 {[%clk 0:00:13]}  Kf6 {[%clk 0:00:23]} 50. Kh2 {[%clk 0:00:12]}  a2 {[%clk 0:00:15]} 51. Ra5 {[%clk 0:00:10]}  e5 {[%clk 0:00:12]} 52. Kg2 {[%clk 0:00:10]}  Ke6 {[%clk 0:00:11]} 53. e4 {[%clk 0:00:08]}  Kd6 {[%clk 0:00:10]} 54. Kf3 {[%clk 0:00:08]}  Kc6 {[%clk 0:00:09]} 55. Kg2 {[%clk 0:00:07]}  Kb6 {[%clk 0:00:10]} 56. Ra8 {[%clk 0:00:08]}  Kc5 {[%clk 0:00:10]} 57. Ra5+ {[%clk 0:00:08]}  Kd4 {[%clk 0:00:10]} 58. Ra4+ {[%clk 0:00:08]}  Kd3 {[%clk 0:00:11]} 59. Ra3+ {[%clk 0:00:08]}  Kxe4 {[%clk 0:00:10]} 60. Ra4+ {[%clk 0:00:07]}  Kd3 {[%clk 0:00:11]} 61. Ra5 {[%clk 0:00:07]}  e4 {[%clk 0:00:11]} 62. Ra3+ {[%clk 0:00:07]}  Kd2 {[%clk 0:00:10]} 63. Ra4 {[%clk 0:00:07]}  h3+ {[%clk 0:00:11]} 64. Kh2 {[%clk 0:00:08]}  Kd3 {[%clk 0:00:11]} 65. Ra3+ {[%clk 0:00:07]}  Ke2 {[%clk 0:00:11]} 66. Ra4 {[%clk 0:00:03]}  Kxf2 {[%clk 0:00:10]} 67. Rxe4 {[%clk 0:00:03]}  Rh1+ {[%clk 0:00:08]} 0-1


[Site "https://www.chess.com"]

[Event "Titled Tuesday Blitz March 22 Early 2022"]
[White "Pinheiro, Iung Alicio de O."]
[Black "Harish, Neeraj"]
[WhiteFideId "2104350"]
[BlackFideId "30958130"]
[WhiteElo "2538"]
[BlackElo "1574"]
[Result "1-0"]
[Round "01"]
[TimeControl "180+1"]
[Date "2022.03.22"]
[WhiteClock "0:01:09"]
[BlackClock "0:00:10"]

1. c4 {[%clk 0:02:58]}  c5 {[%clk 0:02:54]} 2. g3 {[%clk 0:02:58]}  g6 {[%clk 0:02:52]} 3. Bg2 {[%clk 0:02:58]}  Bg7 {[%clk 0:02:52]} 4. Nc3 {[%clk 0:02:59]}  Nc6 {[%clk 0:02:50]} 5. a3 {[%clk 0:02:59]}  e6 {[%clk 0:02:41]} 6. b4 {[%clk 0:02:58]}  cxb4 {[%clk 0:02:28]} 7. axb4 {[%clk 0:02:59]}  Nxb4 {[%clk 0:02:23]} 8. Ba3 {[%clk 0:02:58]}  Nc6 {[%clk 0:02:07]} 9. Nb5 {[%clk 0:02:56]}  Bf8 {[%clk 0:01:59]} 10. Bd6 {[%clk 0:02:42]}  Bxd6 {[%clk 0:01:41]} 11. Nxd6+ {[%clk 0:02:42]}  Kf8 {[%clk 0:01:41]} 12. Nf3 {[%clk 0:02:35]}  Nf6 {[%clk 0:01:38]} 13. Ng5 {[%clk 0:02:32]}  Qe7 {[%clk 0:00:45]} 14. Ngxf7 {[%clk 0:02:23]}  Ne8 {[%clk 0:00:19]} 15. Nxe8 {[%clk 0:01:34]}  Kxf7 {[%clk 0:00:15]} 16. Nc7 {[%clk 0:01:30]}  Rb8 {[%clk 0:00:15]} 17. Nb5 {[%clk 0:01:30]}  a6 {[%clk 0:00:15]} 18. Nc3 {[%clk 0:01:28]}  b5 {[%clk 0:00:14]} 19. cxb5 {[%clk 0:01:23]}  axb5 {[%clk 0:00:15]} 20. Bxc6 {[%clk 0:01:19]}  dxc6 {[%clk 0:00:15]} 21. Ne4 {[%clk 0:01:20]}  Bb7 {[%clk 0:00:14]} 22. Ra7 {[%clk 0:01:10]}  Ra8 {[%clk 0:00:12]} 23. Rxb7 {[%clk 0:01:10]}  Qxb7 {[%clk 0:00:10]} 24. Nd6+ {[%clk 0:01:09]} 1-0


[Site "https://www.chess.com"]